bitfinex-derivatives/quotes_ETHF0:USTF0_20230105
["timestamp","ask_amount","ask_price","bid_price","bid_amount"]
[1672954453741,9.29231834,1251.7,1251.5,5.49300131]
[1672954454367,17.27831834,1251.7,1251.5,2.99300131]
[1672954454579,1.1814,1251.6,1251.4,1.19685523]
[1672954454785,8.78653894,1251.5,1251.3,2.99300131]
[1672954455411,8.78653894,1251.5,1251.3,1.19685523]
[1672954455727,8.78653894,1251.5,1251.3,3.69685523]
[1672954455728,5.48016254,1251.4,1251.3,3.69685523]
[1672954455942,5.48016254,1251.4,1251.3,1.19685523]
[1672954456469,5.48016254,1251.4,1251.3,3.66685523]
[1672954457944,8.78653894,1251.5,1251.3,2.5]
[1672954458152,2.9791041,1251.4,1251.3,2.5]
[1672954458465,5.4792887,1251.4,1251.3,2.5]
[1672954460042,2.9792887,1251.4,1251.3,2.5]
[1672954460251,5.36206781,1251.4,1251.3,2.5]
[1672954460456,2.9792887,1251.4,1251.3,2.5]
[1672954461517,5.36205755,1251.4,1251.3,2.5]
[1672954462765,2.38276885,1251.4,1251.3,7.50394608]
[1672954469393,2.38276885,1251.4,1251.3,4.29614608]
[1672954469605,2.38276885,1251.4,1251.3,7.50394608]
[1672954470026,2.38276885,1251.4,1251.3,4.29614608]
[1672954470339,2.38276885,1251.4,1251.3,7.50394608]
[1672954472653,2.38276885,1251.4,1251.3,4.29614608]
[1672954472970,2.38276885,1251.4,1251.3,7.50394608]
[1672954474541,2.38276885,1251.4,1251.3,4.29614608]
[1672954474750,2.38276885,1251.4,1251.3,7.50394608]
[1672954475491,2.38276885,1251.4,1251.3,4.29614608]
[1672954475695,2.38276885,1251.4,1251.3,7.50394608]
[1672954478016,2.38276885,1251.4,1251.3,4.29614608]
[1672954478220,2.38276885,1251.4,1251.3,7.50394608]
[1672954478426,4.17027117,1251.4,1251.3,7.50394608]
[1672954478748,4.17027117,1251.4,1251.3,9.89374119]
[1672954479274,4.17027117,1251.5,1251.3,12.5048759]
[1672954479479,4.17027117,1251.5,1251.4,4.18782501]
[1672954479689,4.17027117,1251.5,1251.4,1.79482873]
[1672954479893,2.38276885,1251.5,1251.4,1.79482873]
[1672954480318,2.9792887,1251.6,1251.5,2.5]
[1672954480528,2.9792887,1251.7,1251.5,7.50248924]
[1672954480843,2.9792887,1251.7,1251.6,5.00248924]
[1672954481050,2.9792887,1251.8,1251.6,5.00248924]
[1672954481261,1.78786746,1251.7,1251.6,15.38148552]
[1672954481474,1.78786746,1251.7,1251.6,15.3798781]
[1672954482107,1.78786746,1251.8,1251.7,2.5]
[1672954482318,1.78786746,1251.8,1251.7,4.29306814]
[1672954483470,1.78786746,1251.8,1251.7,2.5]
[1672954484004,2.9792887,1251.9,1251.7,2.5]
[1672954484415,2.9792887,1251.9,1251.8,3.2078]
[1672954485577,5.4792887,1252.0,1251.8,3.2078]
[1672954485984,5.4792887,1252.0,1251.9,1.5]
[1672954486937,5.4792887,1252.0,1251.8,3.2078]
[1672954487466,2.9792887,1251.9,1251.8,3.2078]
[1672954488622,5.4792887,1252.0,1251.8,3.2078]
[1672954490621,5.4792887,1252.0,1251.9,2.5]
[1672954493033,5.4792887,1252.0,1251.8,3.2078]
[1672954493252,2.5,1252.0,1251.9,2.5]
[1672954493459,5.47165862,1252.0,1251.9,2.5]
[1672954493674,5.47165862,1252.0,1251.8,3.2078]
[1672954494088,2.97165862,1251.9,1251.8,3.2078]
[1672954494513,2.97165862,1251.9,1251.7,2.5]
[1672954494832,1.78295003,1251.8,1251.7,5.7078]
[1672954498187,1.78295003,1251.8,1251.7,2.5]
[1672954498502,1.78295003,1251.8,1251.7,5.7078]
[1672954501350,1.78295003,1251.8,1251.7,2.5]
[1672954501665,1.78295003,1251.8,1251.7,5.7078]
[1672954504292,2.97165862,1251.9,1251.7,5.7078]
[1672954505032,2.97165862,1251.8,1251.6,2.5]
[1672954505247,1.78406079,1251.7,1251.6,2.5]
[1672954509551,2.97165862,1251.8,1251.6,2.5]
[1672954510289,2.38057937,1251.7,1251.6,2.5]
[1672954510499,4.38057937,1251.7,1251.6,2.5]
[1672954510712,4.38057937,1251.7,1251.5,5.7078]
[1672954510919,1.78543084,1251.6,1251.5,5.7078]
[1672954511125,1.78543084,1251.7,1251.5,7.50086814]
[1672954511445,1.78543084,1251.8,1251.6,1.79183673]
[1672954511654,4.16601021,1251.9,1251.7,4.99963673]
[1672954511867,1.78543084,1251.8,1251.7,4.99963673]
[1672954512184,4.16601021,1251.8,1251.7,5.7078]
[1672954512395,6.16601021,1251.8,1251.7,5.7078]
[1672954513020,4.16601021,1251.8,1251.7,5.7078]
[1672954513550,2.38057937,1251.8,1251.7,5.7078]
[1672954514913,2.38057937,1251.8,1251.7,2.5]
[1672954515122,2.38057937,1251.8,1251.7,5.7078]
[1672954516282,2.38057937,1251.8,1251.7,7.49963673]
[1672954517545,5.35223799,1251.8,1251.7,7.49963673]
[1672954517861,2.38057937,1251.8,1251.7,7.49963673]
[1672954518072,4.16951078,1251.8,1251.7,8.10079628]
[1672954519540,2.38057937,1251.8,1251.7,9.51663269]
[1672954520164,2.38057937,1251.8,1251.7,8.10079628]
[1672954521013,2.38057937,1251.8,1251.7,4.89299628]
[1672954521325,2.97165862,1251.9,1251.8,10.75]
[1672954521547,7.76163372,1252.1,1251.8,10.75]
[1672954521548,1.78934693,1252.0,1251.8,15.15684029]
[1672954521851,2.5,1252.2,1251.9,16.60064029]
[1672954522062,6.07873894,1252.3,1252.1,7.50266819]
[1672954522273,6.07873894,1252.3,1252.1,5.7078]
[1672954522478,3.57873894,1252.4,1252.2,2.5]
[1672954522688,2.5,1252.4,1252.3,3.2078]
[1672954524795,2.5,1252.5,1252.3,3.2078]
[1672954526265,2.5,1252.5,1252.4,2.5]
[1672954528475,3.57873894,1252.6,1252.4,2.5]
[1672954528801,21.34363372,1252.8,1252.5,3.2078]
[1672954529112,2.5,1252.6,1252.5,3.2078]
[1672954529422,2.5,1252.7,1252.5,3.2078]
[1672954529743,13.582,1252.8,1252.6,1.0]
[1672954530059,2.5,1252.7,1252.6,1.0]
[1672954530794,2.5,1252.7,1252.5,3.2078]
[1672954531004,2.5,1252.7,1252.6,2.0]
[1672954533950,2.0,1252.8,1252.6,2.0]
[1672954534152,2.5,1252.8,1252.6,2.0]
[1672954535635,2.5,1252.8,1252.6,5.2078]
[1672954540154,3.0,1252.9,1252.6,13.1938]
[1672954540364,3.0,1252.9,1252.8,3.2078]
[1672954540575,5.5,1252.9,1252.8,3.2078]
[1672954541316,2.5,1252.9,1252.8,3.2078]
[1672954541528,2.5,1252.9,1252.6,13.1938]
[1672954542154,2.96438727,1253.0,1252.6,13.1938]
[1672954542368,16.582,1253.1,1252.8,3.2078]
[1672954542369,4.14578727,1253.1,1252.8,3.2078]
[1672954542687,2.96438727,1253.3,1253.0,3.2078]
[1672954542883,2.5,1253.2,1253.1,2.5]
[1672954544359,2.5,1253.2,1253.0,3.2078]
[1672954544677,5.46438727,1253.2,1253.0,3.2078]
[1672954545100,5.46438727,1253.2,1252.8,5.7078]
[1672954546045,6.17218727,1253.1,1252.8,5.7078]
[1672954548675,2.96438727,1253.1,1252.8,2.5]
[1672954550242,2.96438727,1253.1,1252.8,5.7078]
[1672954550669,2.0,1253.0,1252.8,5.7078]
[1672954551403,4.37145096,1253.0,1252.8,5.7078]
[1672954551616,2.0,1253.0,1252.8,5.7078]
[1672954552238,4.37145096,1253.0,1252.6,13.1938]
[1672954552449,4.37145096,1253.0,1252.6,5.2078]
[1672954552667,7.33583823,1253.0,1252.6,5.2078]
[1672954554134,2.37145096,1252.9,1252.6,5.2078]
[1672954556028,5.33583823,1252.9,1252.6,5.2078]
[1672954556240,2.37145096,1252.8,1252.6,5.2078]
[1672954558442,2.5,1252.7,1252.6,5.2078]
[1672954559289,2.5,1252.7,1252.6,3.2078]
[1672954559593,4.87145096,1252.7,1252.6,3.2078]
[1672954560010,5.46438727,1252.7,1252.6,3.2078]
[1672954562024,5.46438727,1252.7,1252.6,2.5]
[1672954563282,5.46438727,1252.7,1252.5,3.2078]
[1672954563494,2.38074661,1252.6,1252.5,3.2078]
[1672954565179,2.38074661,1252.6,1252.4,2.5]
[1672954565390,2.38074661,1252.6,1252.5,3.2078]
[1672954565904,2.38074661,1252.6,1252.4,2.5]
[1672954566115,2.38074661,1252.5,1252.4,2.5]
[1672954566534,2.38074661,1252.5,1252.4,5.7078]
[1672954569173,2.38074661,1252.5,1252.4,2.5]
[1672954569386,2.38074661,1252.5,1252.4,5.7078]
[1672954570005,2.38074661,1252.5,1252.4,2.5]
[1672954570432,2.38074661,1252.5,1252.4,5.7078]
[1672954571912,2.38074661,1252.5,1252.4,2.5]
[1672954572121,2.38074661,1252.5,1252.4,5.7078]
[1672954572332,2.38074661,1252.5,1252.4,2.5]
[1672954572651,2.38074661,1252.5,1252.4,5.7078]
[1672954572862,2.38074661,1252.5,1252.4,2.5]
[1672954573063,2.38074661,1252.5,1252.4,5.7078]
[1672954573274,2.38074661,1252.5,1252.4,2.5]
[1672954573487,2.38074661,1252.5,1252.4,5.7078]
[1672954574645,5.34513388,1252.5,1252.4,5.7078]
[1672954575169,2.96438727,1252.5,1252.4,5.7078]
[1672954575592,5.34770634,1252.5,1252.4,5.7078]
[1672954575792,5.34770186,1252.5,1252.4,5.7078]
[1672954576322,5.34770186,1252.5,1252.4,2.5]
[1672954576535,5.34770186,1252.5,1252.4,5.7078]
[1672954577273,2.38331459,1252.5,1252.4,5.7078]
[1672954577478,5.34770186,1252.5,1252.4,5.7078]
[1672954578744,2.38331459,1252.5,1252.4,5.7078]
[1672954578956,5.34770186,1252.5,1252.4,5.7078]
[1672954579377,2.38331459,1252.5,1252.4,5.7078]
[1672954579578,5.34770186,1252.5,1252.4,5.7078]
[1672954580425,2.38331459,1252.5,1252.4,6.90243896]
[1672954580939,2.38331459,1252.5,1252.4,8.69730715]
[1672954581573,2.38331459,1252.5,1252.4,6.90243896]
[1672954581785,2.38331459,1252.5,1252.4,3.69463896]
[1672954582002,2.38331459,1252.5,1252.4,6.90243896]
[1672954583474,2.38331459,1252.5,1252.4,3.69463896]
[1672954583793,2.38331459,1252.5,1252.4,6.90243896]
[1672954584531,2.38331459,1252.5,1252.4,16.68330715]
[1672954585891,2.38331459,1252.5,1252.4,16.683948]
[1672954586110,2.38331459,1252.5,1252.4,15.48866819]
[1672954587471,2.38331459,1252.5,1252.4,12.28086819]
[1672954587686,2.38331459,1252.5,1252.4,15.48866819]
[1672954589787,2.38331459,1252.5,1252.4,12.28086819]
[1672954589994,2.38331459,1252.5,1252.4,15.48866819]
[1672954590723,5.34770186,1252.5,1252.4,16.68465354]
[1672954590933,2.96438727,1252.5,1252.4,16.68465354]
[1672954591886,2.96438727,1252.5,1252.4,13.47685354]
[1672954592097,2.96438727,1252.5,1252.4,16.68465354]
[1672954596093,2.96438727,1252.5,1252.4,15.48866819]
[1672954596515,2.96438727,1252.5,1252.4,16.68559082]
[1672954596827,2.96438727,1252.5,1252.4,15.48866819]
[1672954597028,2.96438727,1252.5,1252.4,12.28086819]
[1672954597240,2.96438727,1252.5,1252.4,15.48866819]
[1672954597663,2.96438727,1252.5,1252.4,12.28086819]
[1672954597870,2.96438727,1252.5,1252.4,15.48866819]
[1672954598087,2.96438727,1252.5,1252.4,15.48387017]
[1672954598507,2.96438727,1252.5,1252.4,12.27607017]
[1672954598831,2.96438727,1252.5,1252.4,15.48387017]
[1672954599778,2.96438727,1252.5,1252.4,12.27607017]
[1672954600085,2.96438727,1252.5,1252.4,15.48387017]
[1672954601139,3.57873894,1252.6,1252.4,5.00266819]
[1672954601356,2.0,1252.5,1252.3,2.99205521]
[1672954601659,5.57873894,1252.5,1252.3,2.99205521]
[1672954602076,5.57873894,1252.5,1252.3,1.19718702]
[1672954602289,3.57873894,1252.4,1252.3,1.19718702]
[1672954602606,5.57873894,1252.5,1252.3,1.19718702]
[1672954606713,5.57873894,1252.5,1252.3,4.40498702]
[1672954607344,5.57873894,1252.5,1252.3,3.2078]
[1672954608074,5.57873894,1252.5,1252.2,5.49205521]
[1672954608283,2.98198727,1252.3,1252.2,8.69985521]
[1672954608917,5.36703236,1252.3,1252.2,8.69985521]
[1672954609241,2.98198727,1252.3,1252.2,8.69985521]
[1672954610180,5.3665238,1252.3,1252.2,6.90498702]
[1672954611022,5.3665238,1252.3,1252.2,3.69718702]
[1672954611235,5.3665238,1252.3,1252.2,6.90498702]
[1672954611760,2.38453653,1252.3,1252.2,8.69985521]
[1672954611961,2.38453653,1252.3,1252.2,7.50266819]
[1672954614072,2.38453653,1252.3,1252.2,8.69830446]
[1672954618074,2.38453653,1252.3,1252.2,7.50266819]
[1672954619759,2.38453653,1252.3,1252.2,8.69812269]
[1672954620687,2.38453653,1252.3,1252.2,7.50266819]
[1672954621858,2.38453653,1252.3,1252.2,4.29486819]
[1672954622069,2.38453653,1252.3,1252.2,7.50266819]
[1672954624383,5.3665238,1252.3,1252.2,6.90328022]
[1672954625009,2.38453653,1252.3,1252.2,6.90328022]
[1672954625221,5.3665238,1252.3,1252.2,6.90328022]
[1672954625426,2.38453653,1252.3,1252.2,6.90328022]
[1672954626265,2.38453653,1252.3,1252.2,8.69814841]
[1672954626582,5.3665238,1252.3,1252.2,6.90328022]
[1672954626999,2.38453653,1252.3,1252.2,8.69814841]
[1672954628380,5.3665238,1252.3,1252.2,8.69814841]
[1672954629113,5.3665238,1252.3,1252.2,5.49034841]
[1672954629427,5.3665238,1252.3,1252.2,8.69814841]
[1672954630484,2.98198727,1252.3,1252.2,8.69814841]
[1672954632369,2.98198727,1252.3,1252.2,5.49034841]
[1672954632583,2.98198727,1252.3,1252.2,8.69814841]
[1672954633526,2.98198727,1252.3,1252.2,5.49034841]
[1672954633731,2.98198727,1252.3,1252.2,8.69814841]
[1672954634263,2.98198727,1252.3,1252.2,5.49034841]
[1672954634792,2.98198727,1252.3,1252.2,8.69814841]
[1672954635420,2.98198727,1252.3,1252.2,5.49034841]
[1672954635634,2.98198727,1252.3,1252.2,8.69814841]
[1672954636359,2.98198727,1252.3,1252.2,7.50266819]
[1672954637417,2.98198727,1252.3,1252.2,4.29486819]
[1672954638257,2.98198727,1252.3,1252.2,7.50266819]
[1672954639209,2.98198727,1252.3,1252.2,9.89584287]
[1672954640261,2.98198727,1252.3,1252.2,4.89317468]
[1672954640468,2.98198727,1252.3,1252.2,8.10097468]
[1672954640679,2.98198727,1252.3,1252.2,4.89317468]
[1672954640892,2.98198727,1252.3,1252.2,8.10097468]
[1672954642781,2.98198727,1252.3,1252.2,4.89317468]
[1672954642984,2.98198727,1252.3,1252.2,8.10097468]
[1672954645092,2.98198727,1252.3,1252.2,9.51630903]
[1672954645825,2.98198727,1252.3,1252.2,6.30850903]
[1672954646035,2.98198727,1252.3,1252.2,9.51630903]
[1672954647504,2.98198727,1252.3,1252.2,8.10097468]
[1672954647711,2.98198727,1252.3,1252.2,9.89718008]
[1672954648358,2.98198727,1252.3,1252.2,8.10097468]
[1672954651195,2.98198727,1252.3,1252.2,4.89317468]
[1672954651408,2.98198727,1252.3,1252.2,8.10097468]
[1672954652352,2.98198727,1252.3,1252.2,4.89317468]
[1672954652875,2.98198727,1252.3,1252.2,8.10097468]
[1672954653502,2.98198727,1252.3,1252.2,9.89735885]
[1672954656871,2.98198727,1252.3,1252.2,6.68955885]
[1672954657187,2.98198727,1252.3,1252.2,9.89735885]
[1672954658553,2.98198727,1252.3,1252.2,6.68955885]
[1672954658766,2.98198727,1252.3,1252.2,9.89735885]
[1672954659293,2.98198727,1252.3,1252.2,8.10097468]
[1672954661291,2.98198727,1252.3,1252.2,9.51631138]
[1672954663918,5.37089401,1252.3,1252.2,9.51631138]
[1672954664750,5.37089401,1252.3,1252.2,12.50741602]
[1672954666023,2.38890674,1252.3,1252.2,12.50741602]
[1672954666964,5.37089401,1252.3,1252.2,9.51631138]
[1672954667175,5.37089401,1252.3,1252.2,6.30851138]
[1672954667386,5.37089401,1252.3,1252.2,9.51631138]
[1672954668221,5.37089401,1252.3,1252.2,6.30851138]
[1672954668645,5.37089401,1252.3,1252.2,9.51631138]
[1672954669067,5.37089401,1252.3,1252.2,6.30851138]
[1672954669281,5.37089401,1252.3,1252.2,9.51631138]
[1672954669586,5.37089401,1252.3,1252.2,6.30851138]
[1672954669803,5.37089401,1252.3,1252.2,9.51631138]
[1672954670845,2.38890674,1252.3,1252.2,12.50741602]
[1672954671055,2.38890674,1252.3,1252.2,10.11424134]
[1672954671903,2.38890674,1252.3,1252.2,6.90644134]
[1672954672114,2.38890674,1252.3,1252.2,10.11424134]
[1672954673802,2.38890674,1252.3,1252.2,12.50843549]
[1672954674012,2.38890674,1252.3,1252.2,10.11424134]
[1672954674213,2.38890674,1252.3,1252.2,12.50825828]
[1672954674632,2.38890674,1252.3,1252.2,10.11424134]
[1672954674849,2.38890674,1252.3,1252.2,12.50828958]
[1672954675058,2.38890674,1252.3,1252.2,10.11424134]
[1672954675274,2.38890674,1252.3,1252.2,12.50826232]
[1672954675487,2.38890674,1252.3,1252.2,10.11424134]
[1672954676427,2.38890674,1252.4,1252.2,10.11424134]
[1672954676644,2.38890674,1252.4,1252.3,9.30021922]
[1672954677166,2.38890674,1252.4,1252.3,6.90644134]
[1672954677589,2.38890674,1252.4,1252.3,9.300189]
[1672954677794,2.38890674,1252.4,1252.3,6.90644134]
[1672954678005,2.38890674,1252.4,1252.3,9.29928212]
[1672954678846,2.38890674,1252.4,1252.3,17.28528212]
[1672954680005,5.37089401,1252.5,1252.3,17.28528212]
[1672954680216,5.37089401,1252.5,1252.4,7.00199534]
[1672954680736,2.98198727,1252.5,1252.4,7.00199534]
[1672954681792,5.36898475,1252.5,1252.4,7.00199534]
[1672954682105,2.98198727,1252.5,1252.4,7.00199534]
[1672954683681,2.98198727,1252.5,1252.4,3.79419534]
[1672954683894,5.36849226,1252.5,1252.4,8.19793954]
[1672954684099,5.36849226,1252.5,1252.4,4.99013954]
[1672954684525,5.36849226,1252.5,1252.4,8.19793954]
[1672954685057,5.36849226,1252.5,1252.4,7.00199534]
[1672954685998,5.36849226,1252.5,1252.4,8.19779331]
[1672954687886,5.36849226,1252.5,1252.4,4.98999331]
[1672954688207,5.36849226,1252.5,1252.4,8.19779331]
[1672954691044,2.38650499,1252.5,1252.4,8.19779331]
[1672954692305,5.36849226,1252.5,1252.4,8.19779331]
[1672954692938,2.38650499,1252.5,1252.4,8.19779331]
[1672954695143,5.36849226,1252.5,1252.4,8.19779331]
[1672954696097,5.36849226,1252.5,1252.4,4.98999331]
[1672954696403,5.36849226,1252.5,1252.4,8.19779331]
[1672954697149,5.36849226,1252.5,1252.4,4.98999331]
[1672954697352,5.36849226,1252.5,1252.4,8.19779331]
[1672954698512,5.36849226,1252.5,1252.4,4.98999331]
[1672954698723,5.36849226,1252.5,1252.4,8.19779331]
[1672954699247,5.36849226,1252.5,1252.4,4.98999331]
[1672954699458,5.36849226,1252.5,1252.4,8.19779331]
[1672954699983,5.36849226,1252.5,1252.4,7.00199534]
[1672954700192,5.36849226,1252.5,1252.4,8.19811116]
[1672954700193,2.98198727,1252.5,1252.4,8.19811116]
[1672954700720,5.36860083,1252.5,1252.4,7.00199534]
[1672954701031,2.98198727,1252.5,1252.4,7.00199534]
[1672954701444,5.36874604,1252.5,1252.4,7.00199534]
[1672954702183,2.98198727,1252.5,1252.4,7.00199534]
[1672954702709,5.36929428,1252.5,1252.4,7.00199534]
[1672954703346,5.36929428,1252.5,1252.4,3.79419534]
[1672954703556,5.36929428,1252.5,1252.4,7.00199534]
[1672954703760,2.98198727,1252.5,1252.4,7.00199534]
[1672954706398,5.36933357,1252.5,1252.4,9.39483612]
[1672954706600,5.36933357,1252.5,1252.4,7.00199534]
[1672954706809,5.36933357,1252.5,1252.4,9.39483612]
[1672954707024,2.98198727,1252.5,1252.4,7.00199534]
[1672954707344,2.98198727,1252.5,1252.4,3.79419534]
[1672954707662,2.98198727,1252.5,1252.4,7.00199534]
[1672954708080,2.98198727,1252.5,1252.4,3.79419534]
[1672954708291,2.98198727,1252.5,1252.4,7.00199534]
[1672954709869,2.98198727,1252.5,1252.4,9.39483612]
[1672954714388,2.98198727,1252.5,1252.4,7.60064078]
[1672954714599,2.98198727,1252.5,1252.4,9.01574485]
[1672954715437,2.98198727,1252.5,1252.4,5.80794485]
[1672954715655,2.98198727,1252.5,1252.4,9.01574485]
[1672954718921,2.98198727,1252.5,1252.4,7.01574485]
[1672954719127,3.57873894,1252.6,1252.4,5.60064078]
[1672954719342,6.68289478,1252.7,1252.4,6.20238481]
[1672954719343,2.0,1252.5,1252.4,6.20238481]
[1672954719549,5.5848667,1252.5,1252.4,6.20238481]
[1672954719866,5.5848667,1252.5,1252.4,4.40563169]
[1672954720497,5.5848667,1252.5,1252.4,6.20238481]
[1672954720809,2.0,1252.5,1252.4,6.20238481]
[1672954722071,2.0,1252.5,1252.4,2.99458481]
[1672954722490,2.0,1252.5,1252.4,5.49458481]
[1672954723018,2.0,1252.5,1252.4,3.69783169]
[1672954723228,2.0,1252.5,1252.4,1.19783169]
[1672954725852,5.5848667,1252.5,1252.3,6.20238481]
[1672954726063,5.5848667,1252.5,1252.3,6.19575657]
[1672954726805,5.5848667,1252.5,1252.3,4.40563169]
[1672954727010,8.7926667,1252.5,1252.3,4.40563169]
[1672954727330,12.97556148,1252.5,1252.3,1.19783169]
[1672954727543,3.5848667,1252.4,1252.3,1.19783169]
[1672954727952,12.97556148,1252.5,1252.2,3.69783169]
[1672954728167,2.98341717,1252.3,1252.2,3.69783169]
[1672954731854,5.36885463,1252.3,1252.2,3.69783169]
[1672954733946,2.38543746,1252.3,1252.2,3.69783169]
[1672954734368,2.38543746,1252.3,1252.2,6.90563169]
[1672954737836,2.38543746,1252.3,1252.2,3.69783169]
[1672954738159,2.38543746,1252.3,1252.2,6.90563169]
[1672954738357,2.38543746,1252.3,1252.2,3.69783169]
[1672954738572,2.38543746,1252.3,1252.2,6.90563169]
[1672954740893,2.35543746,1252.3,1252.2,6.90563169]
[1672954743212,5.33885463,1252.3,1252.2,6.90563169]
[1672954743934,5.33885463,1252.3,1252.2,3.69783169]
[1672954744144,2.35543746,1252.3,1252.2,6.90563169]
[1672954744358,5.33885463,1252.3,1252.2,6.90563169]
[1672954745208,2.35543746,1252.3,1252.2,6.90563169]
[1672954745923,5.33885463,1252.3,1252.2,6.90563169]
[1672954746358,2.35543746,1252.3,1252.2,6.90563169]
[1672954746567,2.35543746,1252.3,1252.2,3.69783169]
[1672954746776,2.35543746,1252.3,1252.2,6.90563169]
[1672954747089,2.35543746,1252.3,1252.2,3.69783169]
[1672954747302,2.35543746,1252.3,1252.2,6.90563169]
[1672954747828,5.33885463,1252.3,1252.2,6.90563169]
[1672954748041,2.35543746,1252.3,1252.2,6.90563169]
[1672954748241,5.33885463,1252.3,1252.2,6.90563169]
[1672954748461,2.35543746,1252.3,1252.2,6.90563169]
[1672954749728,2.35543746,1252.3,1252.2,4.40563169]
[1672954749938,5.33885463,1252.3,1252.2,4.40563169]
[1672954750988,5.33885463,1252.3,1252.2,1.19783169]
[1672954751204,2.98341717,1252.3,1252.2,1.19783169]
[1672954753097,2.98341717,1252.4,1252.2,1.19783169]
[1672954753308,2.98341717,1252.3,1252.2,1.19783169]
[1672954759502,2.98341717,1252.3,1252.2,1.16783169]
[1672954762028,2.98341717,1252.3,1252.1,8.10064078]
[1672954763607,2.98341717,1252.3,1252.1,4.89284078]
[1672954763930,2.98341717,1252.3,1252.1,11.09174542]
[1672954764346,2.98341717,1252.3,1252.2,2.39284078]
[1672954765399,2.98341717,1252.3,1252.2,5.60064078]
[1672954765601,2.98341717,1252.3,1252.2,2.39284078]
[1672954766025,2.98341717,1252.3,1252.2,5.60064078]
[1672954768024,3.5848667,1252.4,1252.2,5.60064078]
[1672954768230,3.5848667,1252.4,1252.3,2.5]
[1672954775491,3.5848667,1252.4,1252.2,5.60064078]
[1672954775701,3.5848667,1252.4,1252.2,3.2078]
[1672954777368,3.5848667,1252.4,1252.1,8.10064078]
[1672954777583,2.98734703,1252.2,1252.1,8.10064078]
[1672954777792,2.98734703,1252.2,1252.1,9.51606215]
[1672954778536,2.98734703,1252.2,1252.1,12.50716679]
[1672954780429,2.98734703,1252.2,1252.1,9.29936679]
[1672954780743,2.98734703,1252.2,1252.1,12.50716679]
[1672954781161,5.37727861,1252.2,1252.1,12.50716679]
[1672954781372,5.37727861,1252.2,1252.1,9.29936679]
[1672954781584,5.37727861,1252.2,1252.1,12.50716679]
[1672954782741,5.37727861,1252.2,1252.1,9.29936679]
[1672954783056,5.37727861,1252.2,1252.1,12.50716679]
[1672954783579,5.37748458,1252.2,1252.1,12.50716679]
[1672954784000,2.98734703,1252.2,1252.1,12.50716679]
[1672954784315,2.98734703,1252.2,1252.1,9.29936679]
[1672954784523,2.98734703,1252.2,1252.1,12.50716679]
[1672954786011,2.98734703,1252.2,1252.1,9.29936679]
[1672954786213,2.98734703,1252.2,1252.1,12.50716679]
[1672954786421,2.98734703,1252.2,1252.1,9.51606215]
[1672954786953,2.98734703,1252.2,1252.1,6.30826215]
[1672954787270,2.98734703,1252.2,1252.1,9.51606215]
[1672954787794,2.98734703,1252.2,1252.1,6.30826215]
[1672954788007,2.98734703,1252.2,1252.1,12.50716679]
[1672954789896,2.98734703,1252.2,1252.1,9.29936679]
[1672954790099,2.98734703,1252.2,1252.1,12.50716679]
[1672954790835,2.98734703,1252.2,1252.1,9.29936679]
[1672954791577,2.98734703,1252.2,1252.1,12.50716679]
[1672954791892,2.98734703,1252.2,1252.1,9.51606215]
[1672954792206,2.98734703,1252.2,1252.1,12.50716679]
[1672954793572,2.98734703,1252.2,1252.1,9.51606215]
[1672954794413,2.98734703,1252.2,1252.1,12.50716679]
[1672954795257,2.98734703,1252.2,1252.1,9.51606215]
[1672954795462,2.98734703,1252.2,1252.1,12.50716679]
[1672954795665,2.98734703,1252.2,1252.1,9.29936679]
[1672954795881,2.98734703,1252.2,1252.1,9.51606215]
[1672954796092,2.98734703,1252.2,1252.1,6.30826215]
[1672954796304,2.98734703,1252.2,1252.1,12.50716679]
[1672954797256,2.98734703,1252.2,1252.1,9.29936679]
[1672954797992,2.98734703,1252.2,1252.1,12.50716679]
[1672954798719,5.37850213,1252.2,1252.1,12.50716679]
[1672954798931,5.37850862,1252.2,1252.1,12.50716679]
[1672954799255,2.98734703,1252.2,1252.1,12.50716679]
[1672954799464,5.37870069,1252.2,1252.1,12.50716679]
[1672954800200,2.98734703,1252.2,1252.1,12.50716679]
[1672954800404,5.37855771,1252.2,1252.1,12.50716679]
[1672954800617,5.37855771,1252.2,1252.1,10.11432601]
[1672954800929,5.37855771,1252.2,1252.1,12.50989532]
[1672954801875,2.98734703,1252.2,1252.1,9.51879068]
[1672954802088,2.98734703,1252.2,1252.1,12.50989532]
[1672954802301,2.98734703,1252.2,1252.1,9.51879068]
[1672954804195,2.98734703,1252.2,1252.1,12.50989532]
[1672954805663,2.98734703,1252.2,1252.1,9.51879068]
[1672954806188,2.98734703,1252.2,1252.1,12.50989532]
[1672954806400,2.98734703,1252.2,1252.1,9.30209532]
[1672954806606,2.98734703,1252.2,1252.1,12.50989532]
[1672954807026,2.98734703,1252.2,1252.1,9.51879068]
[1672954808297,2.98734703,1252.2,1252.1,12.50989532]
[1672954809456,2.98734703,1252.2,1252.1,9.30209532]
[1672954809669,5.37791644,1252.2,1252.1,10.11432601]
[1672954812186,5.37791644,1252.2,1252.1,6.90652601]
[1672954812395,5.37791644,1252.2,1252.1,10.11432601]
[1672954813343,2.98734703,1252.2,1252.1,12.51011491]
[1672954813554,2.98734703,1252.2,1252.1,12.51009682]
[1672954813767,2.98734703,1252.2,1252.1,6.90652601]
[1672954813974,2.98734703,1252.2,1252.1,10.11432601]
[1672954814502,2.98734703,1252.2,1252.1,6.90652601]
[1672954814712,5.37808917,1252.2,1252.1,10.11432601]
[1672954815442,2.39074214,1252.2,1252.1,10.1178253]
[1672954815649,2.39074214,1252.2,1252.1,7.12322137]
[1672954815864,2.39074214,1252.3,1252.1,7.12322137]
[1672954816078,2.39074214,1252.3,1252.2,4.40863945]
[1672954816813,2.39074214,1252.3,1252.2,12.39463945]
[1672954817970,2.39074214,1252.3,1252.2,14.78847967]
[1672954818179,2.39074214,1252.3,1252.2,17.99627967]
[1672954818392,2.39074214,1252.3,1252.2,14.78847967]
[1672954818700,2.39074214,1252.3,1252.2,17.99627967]
[1672954821023,5.37808917,1252.4,1252.2,15.60243945]
[1672954821234,5.37808917,1252.4,1252.3,6.68813795]
[1672954821865,2.98734703,1252.4,1252.3,4.29491631]
[1672954822286,5.37594254,1252.4,1252.3,4.29491631]
[1672954822602,2.98734703,1252.4,1252.3,4.29491631]
[1672954823021,5.37593317,1252.4,1252.3,4.29491631]
[1672954823229,2.98734703,1252.4,1252.3,4.29491631]
[1672954823446,5.37599794,1252.4,1252.3,4.29491631]
[1672954823647,2.98734703,1252.4,1252.3,4.29491631]
[1672954823966,2.38868243,1252.4,1252.3,4.29491631]
[1672954824177,2.38868243,1252.4,1252.3,6.68813795]
[1672954824494,2.38868243,1252.4,1252.3,4.29491631]
[1672954824495,5.37602946,1252.4,1252.3,4.29491631]
[1672954825756,2.38868243,1252.4,1252.3,4.29491631]
[1672954826912,2.38411257,1252.4,1252.3,4.29491631]